Cogmind - Beta 15 @@@ ROGUE MODE // 2025.09.11 @ 16:13:04 Player: BlobtheGreat Result: Destroyed by as-36375 with Assembled Maul Performance ------------- Evolutions (0) 0 Regions Visited (2) 400 Robots Destroyed (34) 170 Value Destroyed (616) 616 Prototype IDs (0) 0 Alien Tech Used (0) 0 Bonus (0) 0 TOTAL SCORE: 1186 Bonus ------- None Cogmind --------- Core Integrity 0/250 Matter 295/300 Energy 250/250 System Corruption 5% Temperature Cool (20) Movement Treading (240) Ox1 Location -10/Mines Parts ------- > --- POWER (1) -------- Ion Engine > --- PROPULSION (2) --- Light Treads Light Treads > --- UTILITY (2) ------ High-capacity Storage Unit > --- WEAPON (2) ------- Light Assault Rifle > --- INVENTORY (20) --- Ion Engine Light Treads Aluminum Leg Aluminum Leg Compact Wheel Compact Wheel Scrap Suit Improved Heat Sink Seismic Detector Transport Network Coupler Hacking Suite Medium Laser Rocket Launcher Rocket Launcher Peak State ------------ > --- POWER ------------ Ion Engine > --- PROPULSION ------- Light Treads Light Treads > --- UTILITY ---------- High-capacity Storage Unit > --- WEAPON ----------- Assault Rifle Rocket Launcher > --- INVENTORY -------- Ion Engine Light Treads Aluminum Leg Aluminum Leg Compact Wheel Compact Wheel Improved Heat Sink Seismic Detector Transport Network Coupler Improved Targeting Computer Hacking Suite Medium Laser Light Assault Rifle Rocket Launcher [Rating: 9] Favorites ----------- Power Ion Engine Engine Ion Engine Propulsion Light Treads Treads Light Treads Utility High-capacity Storage Unit Device Seismic Detector Storage High-capacity Storage Unit Processor Improved Targeting Computer Weapon Assault Rifle Ballistic Gun Assault Rifle Launcher Rocket Launcher Build | -11 -10 -10 ------- Run | Yrd Mat Min Slots Evolved . | . . . Power . | . . . Propulsion . | . . . Utility . | . . . Weapon . | . . . Parts Attached 13 | 7 4 2 Power 2 | 1 1 . Engine 2 | 1 1 . Core . | . . . Reactor . | . . . Propulsion 3 | 2 1 . Treads 3 | 2 1 . Leg . | . . . Wheel . | . . . Hover . | . . . Flight . | . . . Utility 5 | 2 2 1 Device 1 | 1 . . Storage 3 | 1 2 . Processor 1 | . . 1 Hackware . | . . . Protection . | . . . Artifact . | . . . Weapon 3 | 2 . 1 Energy Gun . | . . . Energy Cannon . | . . . Ballistic Gun 2 | 2 . . Ballistic Cannon . | . . . Launcher 1 | . . 1 Special Weapon . | . . . Impact Weapon . | . . . Slashing Weapon . | . . . Piercing Weapon . | . . . Special Melee Weapon . | . . . Unidentified Prototypes . | . . . Parts Lost 5 | . 3 2 Power 1 | . 1 . Propulsion 1 | . 1 . Utility 2 | . 1 1 Weapon 1 | . . 1 Highest Loss Streak 2 | . 1 2 To Critical Strikes . | . . . Average Backups 12 | 4 12 14 Power . | . . 1 Propulsion 4 | 3 5 5 Utility 3 | . 4 5 Weapon 2 | . 2 3 Tool/Special . | . . . Unused Backups 13 | . . 13 Power 1 | . . 1 Propulsion 5 | . . 5 Utility 5 | . . 5 Weapon 2 | . . 2 Tool/Special . | . . . Average Slot Usage (%) 87 | . 88 84 Engine 14 | . 14 14 Treads 28 | . 28 28 Device 2 | . 2 . Storage 14 | . 14 14 Ballistic Gun 27 | . 28 26 Peak Build Rating 9 | 7 8 9 Average Rating 7 | 6 7 8 On Entrance 5 | . 7 8 Naked Turns . | . . . Heaviest Build 66 | 12 66 51 Greatest Support 40 | 40 40 40 Greatest Overweight (x) 1 | . 1 1 Average Overweight (x) . | . . 1 Largest Inventory Capacity 20 | 8 20 20 Average Capacity 17 | 7 18 20 Most Carried 16 | 7 14 16 Average Carried 12 | 4 12 15 Final Capacity 20 | 8 20 20 Final Carried 15 | 7 14 15 Class Distribution -------------------- 100% | Mutant Dominant Class ---------------- Mutant | -10/Materials Mutant | -10/Mines Resources | -11 -10 -10 ----------- Run | Yrd Mat Min Matter Collected 682 | 354 253 75 Remotely . | . . . Salvage Created 1058 | 254 630 174 Parts 73 | 19 43 11 Haulers Intercepted 2 | . 2 . Recyclers Shooed . | . . . Parts Field Recycled . | . . . Retrieved Matter . | . . . Parts Self-Destructed . | . . . Prevented . | . . . Kills | -11 -10 -10 ------- Run | Yrd Mat Min Combat Hostiles Destroyed 21 | . 16 5 Guns 18 | . 16 2 AOE 3 | . . 3 Classes Destroyed 8 | 3 5 . Worker 1 | 1 . . Tunneler 7 | 7 . . Hauler 2 | . 2 . Recycler 1 | 1 . . Operator 1 | . 1 . Watcher 1 | . 1 . Swarmer 9 | . 6 3 Grunt 12 | . 10 2 Best Kill Streak 5 | 5 5 3 Combat Bots Only 5 | . 5 3 Max Kills in Single Turn 3 | 1 1 3 Gunslinging . | . . . Exploded 3 | . . 3 Melee . | . . . Uniques/NPCs Destroyed . | . . . Combat | -11 -10 -10 -------- Run | Yrd Mat Min Hostile Shots Fired 92 | . 62 30 Missed 26 | . 16 10 Hits 66 | . 46 20 Melee 8 | . . 8 Projectile 58 | . 46 12 Critical Strikes 1 | . 1 . Damage Taken 921 | . 505 416 Core 252 | . 39 213 Absorbed by Shields . | . . . Core Remaining (%) 100 | 100 . . Volleys Fired 90 | 21 55 14 Largest 2 | 2 2 2 Hottest 40 | 40 40 40 Shots Fired 178 | 42 110 26 Gun 177 | 42 110 25 Cannon . | . . . Launcher 1 | . . 1 Special . | . . . Kinetic 177 | 42 110 25 Thermal . | . . . Explosive 1 | . . 1 Electromagnetic . | . . . Robot Hit Streak 10 | 6 8 10 Robot Miss Streak 3 | 3 3 1 Penetration Max . | . . . Secondary Targets 3 | . 3 . Max Gunslinging Chain 1 | . 1 . Shots Hit Robots 104 | 23 62 19 Core Hits 54 | 11 34 9 Critical Kills . | . . . Critical Parts Destroyed 1 | . 1 . Critical Strikes 1 | . 1 . Destroy 1 | . 1 . Melee Attacks . | . . . Impact . | . . . Slashing . | . . . Piercing . | . . . Sneak Attacks . | . . . Combat Hostiles . | . . . Follow-up Attacks . | . . . Damage Inflicted 1273 | 248 729 296 Guns 1131 | 248 696 187 Cannons . | . . . Explosions 109 | . . 109 Melee . | . . . Ramming 33 | . 33 . Kinetic 1131 | 248 696 187 Thermal . | . . . Explosive 109 | . . 109 Electromagnetic . | . . . Impact . | . . . Slashing . | . . . Piercing . | . . . Highest Corruption 5 | . . 5 Average Corruption 4 | . . 4 Corruption Purged . | . . . Corruption Blocked . | . . . Overload Shots . | . . . Overflow Damage 25 | . . 25 Projectiles . | . . . Explosions 25 | . . 25 Melee . | . . . Knockbacks 1 | . 1 . Impact 1 | . 1 . Kinetic . | . . . Secondary . | . . . Self-Inflicted Damage 20 | . . 20 Shots 1 | . . 1 Rammed 7 | . 7 . Targets Rammed 7 | . 7 . Kicked . | . . . Crushed . | . . . Highest Temperature 27 | . 27 9 Average Temperature 9 | . 9 7 Received Heat Transfer 346 | . 219 127 Siege Activations . | . . . Martial Activations . | . . . Shielding Activations . | . . . Robots Disrupted . | . . . Combat Hostiles . | . . . Robots Corrupted . | . . . Combat Hostiles . | . . . Parts Fried . | . . . Impact Corruptions . | . . . Robots Melted . | . . . Combat Hostiles . | . . . Parts Melted . | . . . Heat Transferred . | . . . Parts Sabotaged . | . . . Parts Stolen . | . . . Parts Stripped . | . . . Power Chain Reactions . | . . . Alert | -11 -10 -10 ------- Run | Yrd Mat Min Maximum Alert Level . | . . . Low Security (%) 100 | 100 100 100 Level 1 . | . . . Level 2 . | . . . Level 3 . | . . . Level 4 . | . . . Level 5 . | . . . High Security . | . . . Max Security . | . . . Peak Influence 151 | 10 151 83 Initial 6 | . . 6 Average 34 | 1 44 20 Influence Increases 696 | 45 519 132 Destroy 0b10 Robot/C 420 | . 320 100 Destroy 0b10 Robot/NC 70 | 45 20 5 Destroy Leader 96 | . 76 20 Successful Hack 28 | . 28 . Select Force Hacks 60 | . 60 . Destroy Structure 7 | . . 7 Lose Combat Pursuer 15 | . 15 . Influence Decreases 696 | 45 501 150 Entered New Map 12 | . . 12 Time Decay 585 | 45 412 128 Lost Part 40 | . 30 10 Purge Threat 59 | . 59 . Squads Dispatched 4 | . 4 . Investigation 3 | . 3 . Extermination . | . . . Reinforcement 1 | . 1 . Assault . | . . . Garrison . | . . . Intercept . | . . . Searches Triggered . | . . . Construction Impeded . | . . . Haulers Reinforced . | . . . Active Scanning Responses . | . . . Cargo Convoy Interrupts . | . . . Stealth | -11 -10 -10 --------- Run | Yrd Mat Min Distress Signals 3 | . 3 . Communications Jammed . | . . . Distress Signals . | . . . Times Spotted 56 | . 32 24 Peak Tracking Total 19 | . 5 19 Tactical Retreats 1 | . 1 . Traps | -11 -10 -10 ------- Run | Yrd Mat Min Traps Triggered 2 | . 2 . Indirectly . | . . . Trap Hack Attempts . | . . . Triggered . | . . . Disarmed . | . . . Reprogrammed . | . . . Reused . | . . . Traps Extracted . | . . . Installed . | . . . Triggered . | . . . Machines | -11 -10 -10 ---------- Run | Yrd Mat Min Machines Disabled . | . . . Max in Single Turn . | . . . Machines Repaired . | . . . Machines Dismantled . | . . . Machines Sabotaged . | . . . Overloaded Fab Kills . | . . . Hacking | -11 -10 -10 --------- Run | Yrd Mat Min Machines Accessed 9 | . 9 . Terminals 7 | . 7 . Fabricators . | . . . Repair Stations . | . . . Recycling Units 2 | . 2 . Scanalyzers . | . . . Garrison Access . | . . . Total Hacks 29 | . 29 . Successful 16 | . 16 . Failed 12 | . 12 . Catastrophic 2 | . 2 . Database Lockouts 1 | . 1 . Manual 21 | . 21 . Terminals 26 | . 26 . Fabricators . | . . . Repair Stations . | . . . Recycling Units 3 | . 3 . Scanalyzers . | . . . Garrison Access . | . . . Terminal Hacks 7 | . 7 . Robot Analysis 2 | . 2 . Level Access Points 1 | . 1 . Branch Access Points 1 | . 1 . Unreport Threat 1 | . 1 . Dispatch Records 1 | . 1 . Hauler Manifests 1 | . 1 . Fabricator Hacks . | . . . Repair Station Hacks . | . . . Recycling Unit Hacks . | . . . Scanalyzer . | . . . Garrison Access Hacks . | . . . Unauthorized Hacks 9 | . 9 . Terminals 7 | . 7 . Botnet 2 | . 2 . Skim 5 | . 5 . Fabricators . | . . . Repair Stations . | . . . Recycling Units 2 | . 2 . Tunnel 2 | . 2 . Scanalyzers . | . . . Garrison Access . | . . . Data Cores Recovered 1 | . 1 . Used . | . . . Hacking Detections 8 | . 8 . Full Trace Events . | . . . Feedback Events . | . . . Feedback Blocked . | . . . Robot Schematics Acquired . | . . . Robots Built . | . . . Authchips . | . . . Time . | . . . Total Robot Build Rating . | . . . Part Schematics Acquired . | . . . Parts Built . | . . . Authchips . | . . . Time . | . . . Total Part Build Rating . | . . . Parts Repaired . | . . . Time . | . . . Parts Recycled . | . . . Recycled Matter . | . . . Retrieved Matter . | . . . Retrieved Components . | . . . Parts Scanalyzed . | . . . Part Schematics Acquired . | . . . Parts Damaged . | . . . Bothacking | -11 -10 -10 ------------ Run | Yrd Mat Min Used RIF Installer . | . . . Robots Hacked . | . . . Non-combat . | . . . Combat . | . . . Robot Hacks Applied . | . . . Relay Couplers Released . | . . . Fabnet Peak Effective % . | . . . Robots Rewired . | . . . Allies Hacked . | . . . Hacks Repelled . | . . . Allies | -11 -10 -10 -------- Run | Yrd Mat Min Total Allies . | . . . Largest Group . | . . . Highest-Rated Group . | . . . Highest-Rated Ally . | . . . Total Orders . | . . . Ally Attacks . | . . . Total Damage . | . . . Kills . | . . . Allies Corrupted . | . . . Allies Melted . | . . . Intel | -11 -10 -10 ------- Run | Yrd Mat Min Active Infowar (turns) 466 | 138 328 . Seismic 466 | 138 328 . Robot Analysis Total 2 | . 2 . Derelict Logs Recovered . | . . . Drone Launches . | . . . Drone Recoveries . | . . . Exploration | -11 -10 -10 ------------- Run | Yrd Mat Min Turns Passed 2472 | 270 1710 492 Spaces Moved 1003 | 126 690 187 Core 6 | 6 . . Treads 997 | 120 690 187 Legs . | . . . Wheels . | . . . Hover . | . . . Flight . | . . . Fastest Speed 50 | 50 160 240 Average Speed 214 | 154 217 240 Slowest Speed 240 | 160 240 240 Overloaded Moves . | . . . Propulsion Burnouts . | . . . Robots Hopped . | . . . Potential Cave-ins . | . . . Cave-ins Triggered . | . . . Exploration Rate (%) 50 | 8 95 49 Regions Visited 2 Branch Regions 1 Pre-discovered Areas 4 | . 3 1 Known Exits Taken 1 | . 1 . Unknown Exits Taken 1 | 1 . . Scrap Searched 2 | . . 2 Spaces Dug . | . . . Terrain Destroyed 9 | . . 9 Melee . | . . . Projectile . | . . . AOE 9 | . . 9 Terrain Rammed . | . . . Walls Destroyed . | . . . Machines Disabled . | . . . Actions | -11 -10 -10 --------- Run | Yrd Mat Min Total 1155 | 160 789 206 Wait 23 | . 22 1 Move 1001 | 125 689 187 Hop . | . . . Pick Up 17 | 7 9 1 Fast Attach 8 | 7 1 . Attach 3 | . 2 1 Detach 1 | . 1 . Swap 3 | . 1 2 Drop 2 | . 2 . Fire 90 | 21 55 14 Melee . | . . . Ram . | . . . Kick . | . . . Crush 7 | . 7 . Escape Stasis . | . . . Rewire . | . . . Trap . | . . . Miscellaneous . | . . . Route ------- -11/Scrapyard -10/Materials (discovered 6 exits: *Mat x3 / *Min x2 / Sub) -10/Mines (discovered 2 exits: *Mat x2) History --------- Turn | Location | Event 6 | -11/Scrapyard | Discovered new exit (range 15) 271 | -11/Scrapyard | Entered Materials 300 | -10/Materials | Build established: Mutant 376 | -10/Materials | Discovered new exit (range 14) 406 | -10/Materials | Discovered new exit (range 15) 842 | -10/Materials | Discovered new exit (range 14) 1205 | -10/Materials | Central database locked down 1244 | -10/Materials | Discovered new exit (range 7) 1372 | -10/Materials | Identified exit to Mines 1507 | -10/Materials | Learned 4 Recycling zone layouts 1602 | -10/Materials | Learned Storage stockpile data 1635 | -10/Materials | Identified exit to Subcaves 1678 | -10/Materials | Learned location of 1 exit from Storage 1775 | -10/Materials | Identified exit to Materials 1981 | -10/Materials | Entered Mines 2030 | -10/Mines | Found a Scrap Suit stashed away for nefarious purposes 2034 | -10/Mines | Found Scrap Suit 2283 | -10/Mines | Learned location of Storage (-8) 2440 | -10/Mines | Assembled infested the area 2458 | -10/Mines | Core integrity fell below 50% 2463 | -10/Mines | Core integrity fell below 20% 2473 | -10/Mines | Destroyed by as-36375 with Assembled Maul Last Messages --------------- 02400_ K-01 Serf collects debris. 02404_ R-06 Scavenger collects Aluminum Leg. 02405_ K-01 Serf collects debris. 02440_ ALERT: Infestation in the mines, dispatching Demolisher response squad. 02457_ as-09319 destroyed. 02459_ as-48847 destroyed. 02460_ as-39047 destroyed. 02460_ as-36375 sneak attacks. 02460_ U-05 Engineer system corrupted by crushing effect. 02461_ as-98890 sneak attacks. 02461_ U-05 Engineer system corrupted by crushing effect. 02462_ U-05 Engineer system terminally corrupted. 02464_ Assault Rifle destroyed. 02464_ System corrupted by crushing effect (+4). 02466_ Imp. Targeting Computer destroyed. 02466_ System corrupted by crushing effect (+1). Map ----- +----------------------------------------------------+ | ?????????????????????## ##???????????????? | | ?????????????????????# #???############? | | ??????????????????????# #??## =%! #? | | ??????????????????????## #??# % ! ] %=#? | | ???????????????????????# #??# [#####* #? | | ????????????????#####?## ##??#!%[ #??# #? | | ???????????????## ## ##??# < !#?## #? | | ???????????????# ##### #### ## | | ???????????????# ### ##### | | ???????????????# | | ???????????????## | | ????????????????##### ####### | | ????????????????????## ##????## | | ????????????????????## #####????## #### | | ???????????????????## ##????????# ##??? | | ???????????????????# #?????????# #???? | | ??????????????????## ##????????## #???? | | ?????????????###### ##???????### #???? | | ????????????## #???????## ##???? | | ????????????# ##??????## ##????? | | ????????????# ##?????### =%##??### | | ????????????## ##?????## [ ### # | | ????????????#### ###??????# # | | ????????????+ ####?????????## # | | ????????????+ ######??????### ### ## | | ?????????????# @a##???????# #?## ### | | ?????????????### aa #???????# #??# = | | ???????????????## ##?###### #??# %* | | ???????????????## ### #??##[ ##### | | ???????????????# a #???####???? | | ???????????????# a #####??????????? | | ???????????????# %= #??????????????? | | ??????????????# ## %###??????????????? | | ?????????????# ##### *#????????????????? | | ????????????# #????## #????????????????? | | ???????????# #??????# ????????????????? | | ??????????# ???????# #???????????????? | | ??????????# #???????# #???????????????? | | ?????????? ????????# ???????????????? | | ??????????? ????????? ???????????????? | | ??????????????????????? ??????????????? | | ??????????????????????? ??????????????? | | ??????????????????????? % ???????????????? | | ??????????????????????? ???????????????? | | ??????????????????????? ????????????????? | | ???????????????????????????????????????????? | | ???????????????????????????????????????????? | | ???????????????????????????????????????????? | | ???????????????????????????????????????????? | | ???????????????????????????????????????????? | +----------------------------------------------------+ Best States ------------- Heat Dissipation 25 Energy Generation 10 Energy Capacity 250 Matter Stores 300 Matter Capacity 300 Sight Range 16 Terrain Scan Density 10 Evasion (%) 40 Recoil Reduction 2 Item Schematics ----------------- None Robot Schematics ------------------ None Fabricated ------------ Nothing Repaired ---------- Nothing Alien Tech Used ----------------- None Achievements -------------- None Challenges ------------ None Game ------ Seed ElectronDirtyArachnoskeleton Manual? 0 Play Time 00:10:30 Cumulative 131.3 hours Start 2025.09.11 @ 16:04:15 End 2025.09.11 @ 16:13:04 Sessions 1 Manual Loads 0 Difficulty Rogue Special Mode None Game No. 118 Rogue 118 Adventurer 0 Explorer 0 Win Type - Total 4 Types 3/0/1/0/0/0/0/0/0/0 Lore% 67 Gallery% 60 Achievement% 56 Wizard Run 0 Options --------- Layout 1 ASCII 0 Keyboard 1 Movement Arrows Keybinds 0 Fullscreen 1 Font 24/Smallcaps Map View 50x40 Zoom Use 0% Tactical HUD 1 Map Filters NONE Filters NONE Steam 1 RUN: e4aac32b-7792-4b97-9815-dbf7b0b7aa26